Cogmind - Beta 11.1 @@@ ROGUE MODE // 2022.08.11 @ 07:12:47 Player: maxwell Result: Self-destructed Performance ------------- Evolutions (4) 2000 Regions Visited (12) 2400 Robots Destroyed (184) 920 Value Destroyed (8117) 8117 Prototype IDs (7) 140 Alien Tech Used (0) 0 Bonus (2324) 2324 TOTAL SCORE: 15901 Bonus ------- High Alert Combat Kills 724 Entered Garrisons 600 Used RIF Installer 1000 Cogmind --------- Core Integrity 301/850 Matter 296/300 Energy 290/290 System Corruption 6% Temperature Cool (0) Movement Treading (242) Ox1 Location -6/Garrison Parts ------- > --- POWER (1) -------- Reinforced Deuterium Engine > --- PROPULSION (4) --- Light Treads Light Treads Light Treads Armored Treads > --- UTILITY (6) ------ Huge Storage Unit Experimental Sensor Array Relay Coupler [NC] (16) Relay Coupler [Grunt] (9) Relay Coupler [Brawler] (12) > --- WEAPON (4) ------- Heavy Assault Rifle Autogun Gauss Rifle Gauss Rifle > --- INVENTORY (25) --- Light Treads Huge Storage Unit Matter Compressor (250) Advanced Sensor Array Launcher Guidance Computer Recoil Stabilizer Kinecellerator Phase Shifter Graphene Brace Relay Coupler [NC] (31) Relay Coupler [NC] (25) Relay Coupler [NC] (27) Relay Coupler [Grunt] (28) Relay Coupler [Specialist] (26) Autogun Heavy Machine Gun Mini Assault Cannon Grenade Launcher Remote Datajack Peak State ------------ > --- POWER ------------ Improved Deuterium Engine > --- PROPULSION ------- Carbon-fiber Leg Carbon-fiber Leg Carbon-fiber Leg Flexi-carbon Leg > --- UTILITY ---------- Huge Storage Unit Experimental Sensor Array Advanced Signal Interpreter Advanced Targeting Computer Kinecellerator Phase Shifter > --- WEAPON ----------- Heavy Assault Rifle Autogun Improved Assault Rifle Remote Datajack > --- INVENTORY -------- Reinforced Deuterium Engine Light Fission Core Light Treads Armored Treads Carbon-fiber Leg Carbon-fiber Leg Carbon-fiber Leg Flexi-carbon Leg Advanced Heat Sink Huge Storage Unit High-capacity Matter Pod Advanced Sensor Array Advanced Terrain Scan Processor Advanced Terrain Scan Processor Weapon Cycler Relay Coupler [NC] Relay Coupler [NC] Relay Coupler [NC] Heavy Assault Rifle Minigun Minigun Gauss Rifle Heavy Machine Gun Mini Assault Cannon Grenade Launcher [Rating: 63] Favorites ----------- Power Ion Engine Engine Ion Engine Power Core Light Nuclear Core Propulsion Light Treads Treads Light Treads Leg Carbon-fiber Leg Utility Advanced Targeting Computer Device Kinecellerator Storage Huge Storage Unit Processor Advanced Targeting Computer Hackware Relay Coupler [NC] Weapon Heavy Assault Rifle Energy Gun Medium Laser Ballistic Gun Heavy Assault Rifle Ballistic Cannon Mini Assault Cannon Launcher Grenade Launcher Special Weapon Remote Datajack Special Melee Weapon Improved Datajack Build | -11 -10 -10 -10 -9 -8 -8 -8 -8 -6 -6 -6 -6 ------- Run | Scr Mat Min Exi Min Mat Sto Gar Rec Fac Gar Fac Gar Slots Evolved 8 | . . . . . 4 . . . 4 . . . Power . | . . . . . . . . . . . . . Propulsion 2 | . . . . . 2 . . . . . . . Utility 4 | . . . . . . . . . 4 . . . Weapon 2 | . . . . . 2 . . . . . . . Parts Attached 166 | 6 3 2 1 . 20 20 11 4 39 25 5 30 Power 9 | 1 . . . . 1 1 1 . 3 1 . 1 Engine 8 | 1 . . . . 1 . 1 . 3 1 . 1 Core 1 | . . . . . . 1 . . . . . . Reactor . | . . . . . . . . . . . . . Propulsion 40 | 2 . . . . 5 7 3 4 4 9 . 6 Treads 35 | 2 . . . . 5 7 3 4 4 5 . 5 Leg 5 | . . . . . . . . . . 4 . 1 Wheel . | . . . . . . . . . . . . . Hover . | . . . . . . . . . . . . . Flight . | . . . . . . . . . . . . . Utility 51 | 1 2 . 1 . 2 1 . . 26 5 3 10 Device 34 | . . . . . . . . . 22 3 1 8 Storage 4 | 1 1 . 1 . . 1 . . . . . . Processor 8 | . 1 . . . 2 . . . 3 1 1 . Hackware 5 | . . . . . . . . . 1 1 1 2 Protection . | . . . . . . . . . . . . . Artifact . | . . . . . . . . . . . . . Weapon 66 | 2 1 2 . . 12 11 7 . 6 10 2 13 Energy Gun 4 | 2 . 1 . . 1 . . . . . . . Energy Cannon . | . . . . . . . . . . . . . Ballistic Gun 46 | . . 1 . . 7 8 6 . 5 8 1 10 Ballistic Cannon 6 | . . . . . 3 3 . . . . . . Launcher 6 | . 1 . . . 1 . 1 . . 2 . 1 Special Weapon 3 | . . . . . . . . . . . 1 2 Impact Weapon . | . . . . . . . . . . . . . Slashing Weapon . | . . . . . . . . . . . . . Piercing Weapon . | . . . . . . . . . . . . . Special Melee Weapon 1 | . . . . . . . . . 1 . . . Unidentified Prototypes 3 | . . . . . 1 . 1 . 1 . . . Parts Lost 55 | . . 1 . . 10 12 1 . 12 13 . 6 Power 3 | . . . . . 1 1 . . . 1 . . Propulsion 21 | . . . . . 3 7 . . 5 5 . 1 Utility 6 | . . . . . . . . . 3 1 . 2 Weapon 25 | . . 1 . . 6 4 1 . 4 6 . 3 Highest Loss Streak 6 | . . 1 . . 2 2 1 . 4 6 . 6 To Critical Strikes 1 | . . . . . . . . . . 1 . . Average Slot Usage (%) 96 | . 96 100 100 100 84 98 99 99 97 98 99 98 Engine 7 | . 14 14 14 14 8 4 1 9 6 5 6 6 Treads 23 | . 28 28 28 28 22 35 36 35 25 10 . 21 Leg 4 | . . . . . . . . . . 15 26 4 Device 6 | . . . . . . . . . 18 11 13 11 Storage 8 | . 14 14 14 14 9 9 9 9 6 6 6 6 Processor 11 | . 10 14 14 14 9 9 9 9 12 19 13 11 Hackware 2 | . . . . . . . . . . 2 5 8 Energy Gun 2 | . 14 14 14 14 1 . . . . . . . Ballistic Gun 24 | . . 9 14 14 26 31 33 36 25 24 23 25 Ballistic Cannon 1 | . . . . . 6 4 . . . . . . Launcher 1 | . 13 4 . . . . 1 . . 1 . . Naked Turns . | . . . . . . . . . . . . . Heaviest Build 114 | 14 20 20 49 49 59 98 99 98 108 109 108 114 Greatest Support 80 | 40 40 40 40 40 80 80 80 80 80 80 65 80 Greatest Overweight (x) 6 | . . . 1 1 1 2 1 2 1 6 1 1 Average Overweight (x) . | . . . . 1 . . 1 1 1 1 1 1 Largest Inventory Capacity 25 | 8 10 10 20 20 20 25 25 25 25 25 25 25 Average Capacity 21 | 6 9 10 15 20 20 23 25 25 25 25 25 25 Most Carried 25 | . 3 9 10 10 20 25 25 25 25 24 25 25 Average Carried 18 | . 1 6 9 9 12 20 24 25 21 20 24 23 Final Capacity 25 | 8 10 10 20 20 20 25 25 25 25 25 25 25 Final Carried 25 | . 3 9 9 10 20 24 25 25 21 24 25 19 Class Distribution -------------------- 55% | Scavenger-Gunner 17% | Mutant 8% | Scavenger-Mutant 8% | Gunner Dominant Class ---------------- Mutant | -10/Materials Mutant | -10/Mines Mutant | -10/Exiles Mutant | -9/Mines Gunner | -8/Materials Scavenger-Gunner | -8/Storage Scavenger-Gunner | -8/Garrison Scavenger-Gunner | -8/Recycling Scavenger-Gunner | -6/Factory Scavenger-Gunner | -6/Garrison Scavenger-Gunner | -6/Factory Scavenger-Gunner | -6/Garrison Resources | -11 -10 -10 -10 -9 -8 -8 -8 -8 -6 -6 -6 -6 ----------- Run | Scr Mat Min Exi Min Mat Sto Gar Rec Fac Gar Fac Gar Matter Collected 6940 | 257 157 118 . . 958 1092 485 173 1216 985 46 1453 Remotely 871 | . . . . . . . . . 871 . . . Salvage Created 7149 | . 358 263 . . 1432 1310 576 200 1007 1032 46 925 Parts 387 | . 21 19 . . 77 75 43 12 52 45 6 37 Haulers Intercepted 6 | . 1 . . . 2 3 . . . . . . Recyclers Shooed 2 | . . . . . . 2 . . . . . . Parts Field Recycled . | . . . . . . . . . . . . . Retrieved Matter . | . . . . . . . . . . . . . Parts Self-Destructed . | . . . . . . . . . . . . . Prevented . | . . . . . . . . . . . . . Kills | -11 -10 -10 -10 -9 -8 -8 -8 -8 -6 -6 -6 -6 ------- Run | Scr Mat Min Exi Min Mat Sto Gar Rec Fac Gar Fac Gar Combat Hostiles Destroyed 158 | . 10 12 . . 27 25 20 4 16 24 1 19 Guns 124 | . . 5 . . 23 25 15 4 16 18 1 17 Cannons 2 | . . . . . 2 . . . . . . . AOE 32 | . 10 7 . . 2 . 5 . . 6 . 2 Classes Destroyed 15 | . 3 2 . . 6 1 . 1 2 . . . Worker 8 | . 1 . . . 4 2 . . 1 . . . Builder 3 | . . . . . 3 . . . . . . . Tunneler 1 | . . 1 . . . . . . . . . . Hauler 6 | . 1 . . . 2 3 . . . . . . Recycler 3 | . . . . . . 1 . 2 . . . . Operator 1 | . . . . . 1 . . . . . . . Drone 4 | . . . . . . . . 4 . . . . Watcher 4 | . . . . . 2 1 . . 1 . . . Swarmer 40 | . . 6 . . 6 4 10 . . 7 . 7 Grunt 74 | . 10 6 . . 13 12 3 . 9 13 . 8 Brawler 2 | . . . . . . . . . 1 1 . . Sentry 24 | . . . . . 5 9 7 . . 1 . 2 Specialist 2 | . . . . . 2 . . . . . . . Hunter 7 | . . . . . 1 . . . 2 2 . 2 Programmer 5 | . . . . . . . . . 4 . 1 . Best Kill Streak 8 | . 3 3 . . 8 6 4 5 3 7 1 4 Combat Bots Only 7 | . 2 3 . . 7 4 4 3 2 7 1 4 Max Kills in Single Turn 3 | . 2 3 . . 3 2 2 2 1 3 1 2 Gunslinging 1 | . . . . . 1 1 . . . 1 . 1 Exploded 3 | . 1 3 . . 2 . 2 . . 3 . 2 Melee . | . . . . . . . . . . . . . Uniques/NPCs Destroyed . | . . . . . . . . . . . . . Combat | -11 -10 -10 -10 -9 -8 -8 -8 -8 -6 -6 -6 -6 -------- Run | Scr Mat Min Exi Min Mat Sto Gar Rec Fac Gar Fac Gar Damage Taken 9019 | . 100 471 . . 1195 1229 679 . 1877 1775 31 1662 Core 997 | . 12 108 . . 136 106 86 . 168 156 15 210 Absorbed by Shields 10 | . . . . . . . . . . 10 . . Regen/Repaired (Parts) 326 | . . . . . . . . . . . 138 188 Core Remaining (%) 64 | 100 . . . 52 . . . 40 . . . . Volleys Fired 417 | . 12 28 . . 79 76 33 14 56 52 3 64 Largest 4 | . 1 2 . . 4 4 4 4 4 4 4 4 Hottest 118 | . 30 70 . . 118 116 97 94 99 102 94 107 Shots Fired 1364 | . 12 42 . . 269 273 110 57 210 175 8 208 Gun 1253 | . . 32 . . 240 238 104 57 210 168 6 198 Cannon 61 | . . . . . 26 35 . . . . . . Launcher 39 | . 12 10 . . 3 . 6 . . 7 . 1 Special 11 | . . . . . . . . . . . 2 9 Kinetic 1293 | . . 14 . . 263 273 104 57 210 168 6 198 Thermal 18 | . . 15 . . 3 . . . . . . . Explosive 39 | . 12 10 . . 3 . 6 . . 7 . 1 Electromagnetic 3 | . . 3 . . . . . . . . . . Robot Hit Streak 23 | . 5 11 . . 18 16 23 3 13 22 11 17 Robot Miss Streak 9 | . . 2 . . 5 5 5 9 3 3 . 5 Penetration Max 1 | . . . . . . 1 . 1 1 1 . . Secondary Targets 21 | . . 1 . . 3 5 2 . 2 5 . 3 Max Gunslinging Chain 2 | . . 1 . . 1 2 1 . 1 1 . 1 Shots Hit Robots 811 | . 5 20 . . 177 166 48 16 144 112 4 119 Core Hits 384 | . 18 21 . . 82 67 32 7 49 61 2 45 Critical Kills 9 | . . . . . . . . 1 4 4 . . Critical Parts Destroyed 11 | . . . . . 1 . 1 . 3 4 . 2 Critical Strikes 23 | . . 1 . . 2 1 1 1 7 8 . 2 Burn 1 | . . 1 . . . . . . . . . . Destroy 21 | . . . . . 2 . 1 1 7 8 . 2 Blast 1 | . . . . . . 1 . . . . . . Melee Attacks 3 | . . . . . . . . . 3 . . . Impact . | . . . . . . . . . . . . . Slashing . | . . . . . . . . . . . . . Piercing . | . . . . . . . . . . . . . Sneak Attacks 3 | . . . . . . . . . 3 . . . Combat Hostiles . | . . . . . . . . . . . . . Follow-up Attacks . | . . . . . . . . . . . . . Damage Inflicted 15512 | . 704 774 . . 2685 2853 1213 258 2379 2459 40 2147 Guns 11752 | . . 233 . . 2113 2247 658 258 2361 1831 40 2011 Cannons 564 | . . . . . 271 293 . . . . . . Explosions 3158 | . 703 541 . . 282 313 555 . . 628 . 136 Melee . | . . . . . . . . . . . . . Ramming 38 | . 1 . . . 19 . . . 18 . . . Kinetic 12149 | . . 79 . . 2371 2540 658 258 2361 1831 40 2011 Thermal 125 | . . 112 . . 13 . . . . . . . Explosive 3158 | . 703 541 . . 282 313 555 . . 628 . 136 Electromagnetic 42 | . . 42 . . . . . . . . . . Impact . | . . . . . . . . . . . . . Slashing . | . . . . . . . . . . . . . Piercing . | . . . . . . . . . . . . . Highest Corruption 11 | . 1 1 1 1 . 1 1 1 11 3 4 6 Average Corruption 2 | . 1 1 1 1 . 1 1 1 5 3 3 4 Corruption Purged 10 | . . . . . . . . . 10 . . . Corruption Blocked . | . . . . . . . . . . . . . Effects 137 | . 5 9 4 1 . 7 5 4 9 29 16 48 Message Errors 42 | . . 1 3 . . 5 2 2 1 6 6 16 Matter Fused 22 | . 1 1 . . . 2 1 . 2 7 3 5 Heat Flow Errors 15 | . 2 1 . 1 . . . . 1 2 . 8 Energy Discharges 14 | . 1 . . . . . 1 . 1 5 1 5 Parts Rejected 1 | . . . . . . . . . . . . 1 Data Loss (minor) 23 | . 1 2 1 . . . . 1 3 6 3 6 Data Loss (major) 8 | . . 2 . . . . 1 . 1 . 1 3 Misfires 7 | . . 1 . . . . . 1 . 2 2 1 Alerts 2 | . . . . . . . . . . . . 2 Weapon Failures 3 | . . 1 . . . . . . . 1 . 1 Overload Shots . | . . . . . . . . . . . . . Overflow Damage 79 | . 21 . . . 19 32 5 . . 2 . . Projectiles 27 | . . . . . 19 8 . . . . . . Explosions 52 | . 21 . . . . 24 5 . . 2 . . Melee . | . . . . . . . . . . . . . Knockbacks 5 | . . . . . 2 3 . . . . . . Impact . | . . . . . . . . . . . . . Kinetic 5 | . . . . . 2 3 . . . . . . Secondary . | . . . . . . . . . . . . . Self-Inflicted Damage 222 | . . 40 . . . . 108 . . 74 . . Shots 9 | . . 2 . . . . 3 . . 4 . . Rammed 5 | . 2 . . . 2 . . . 1 . . . Targets Rammed 6 | . 2 . . . 2 . . . 2 . . . Kicked . | . . . . . . . . . . . . . Crushed 1 | . . . . . . . . . 1 . . . Highest Temperature 462 | . 145 254 . 109 462 290 156 54 186 277 9 339 Average Temperature 71 | . 62 61 . 60 108 72 45 18 36 79 6 76 Received Heat Transfer 2787 | . 54 147 . . 495 468 117 . 453 537 . 516 Effects 12 | . . 1 . . 8 3 . . . . . . Shutdowns 1 | . . . . . 1 . . . . . . . Energy Bleed 1 | . . . . . 1 . . . . . . . Interference 6 | . . 1 . . 2 3 . . . . . . Damage (major) 4 | . . . . . 4 . . . . . . . Siege Activations . | . . . . . . . . . . . . . Robots Corrupted . | . . . . . . . . . . . . . Combat Hostiles . | . . . . . . . . . . . . . Parts Fried . | . . . . . . . . . . . . . Impact Corruptions . | . . . . . . . . . . . . . Robots Melted . | . . . . . . . . . . . . . Combat Hostiles . | . . . . . . . . . . . . . Parts Melted 1 | . . 1 . . . . . . . . . . Heat Transferred 444 | . . 407 . . 37 . . . . . . . Parts Sabotaged . | . . . . . . . . . . . . . Parts Stolen . | . . . . . . . . . . . . . Parts Stripped . | . . . . . . . . . . . . . Power Chain Reactions . | . . . . . . . . . . . . . Missiles Intercepted . | . . . . . . . . . . . . . Alert | -11 -10 -10 -10 -9 -8 -8 -8 -8 -6 -6 -6 -6 ------- Run | Scr Mat Min Exi Min Mat Sto Gar Rec Fac Gar Fac Gar Peak Influence 1269 | . 409 598 . . 367 400 780 539 1269 802 420 587 Initial 1042 | . . 159 . . . . 193 351 1042 182 420 70 Average 378 | . 261 384 . . 82 247 497 439 597 568 296 426 Maximum Alert Level 4 | . 2 2 . . 1 2 3 2 4 3 2 2 Low Security (%) 22 | 100 26 11 . 100 91 16 9 . . 4 13 16 Level 1 38 | . 67 56 . . 8 83 36 33 45 26 43 19 Level 2 26 | . 5 32 . . . . 20 66 18 32 43 64 Level 3 9 | . . . . . . . 32 . 19 36 . . Level 4 2 | . . . . . . . . . 16 . . . Level 5 . | . . . . . . . . . . . . . High Security . | . . . . . . . . . . . . . Max Security . | . . . . . . . . . . . . . Squads Dispatched 21 | . 4 . . . 4 7 . . 5 . 1 . Investigation 4 | . 1 . . . 2 1 . . . . . . Extermination 4 | . . . . . . . . . 3 . 1 . Reinforcement 10 | . 3 . . . 2 3 . . 2 . . . Assault . | . . . . . . . . . . . . . Garrison 3 | . . . . . . 3 . . . . . . Intercept . | . . . . . . . . . . . . . Searches Triggered 3 | . . . . . . . . . 3 . . . Construction Impeded . | . . . . . . . . . . . . . Haulers Reinforced 1 | . . . . . . . . . 1 . . . Active Scanning Responses . | . . . . . . . . . . . . . Cargo Convoy Interrupts . | . . . . . . . . . . . . . Stealth | -11 -10 -10 -10 -9 -8 -8 -8 -8 -6 -6 -6 -6 --------- Run | Scr Mat Min Exi Min Mat Sto Gar Rec Fac Gar Fac Gar Distress Signals 9 | . 2 . . . 3 2 . . 2 . . . Communications Jammed . | . . . . . . . . . . . . . Distress Signals . | . . . . . . . . . . . . . Times Spotted 216 | . 17 12 . . 39 30 24 12 29 25 3 25 Peak Tracking Total 9 | . 4 3 . . 5 4 3 3 9 7 2 5 Tactical Retreats 9 | . . . . . 1 . 1 . 2 4 . 1 Traps | -11 -10 -10 -10 -9 -8 -8 -8 -8 -6 -6 -6 -6 ------- Run | Scr Mat Min Exi Min Mat Sto Gar Rec Fac Gar Fac Gar Traps Triggered 25 | . 2 . . . 1 5 2 . 2 7 . 6 Indirectly . | . . . . . . . . . . . . . Trap Hack Attempts . | . . . . . . . . . . . . . Triggered . | . . . . . . . . . . . . . Disarmed . | . . . . . . . . . . . . . Reprogrammed . | . . . . . . . . . . . . . Reused . | . . . . . . . . . . . . . Traps Extracted . | . . . . . . . . . . . . . Installed . | . . . . . . . . . . . . . Triggered . | . . . . . . . . . . . . . Machines | -11 -10 -10 -10 -9 -8 -8 -8 -8 -6 -6 -6 -6 ---------- Run | Scr Mat Min Exi Min Mat Sto Gar Rec Fac Gar Fac Gar Machines Disabled 26 | . 2 1 . . . 9 2 2 2 3 . 5 Max in Single Turn 2 | . 1 1 . . . 2 1 1 1 1 . 2 Garrison Relay 7 | . . . . . . . 2 . . 3 . 2 Phase Generator 1 | . . . . . . . . . . . . 1 Machines Sabotaged . | . . . . . . . . . . . . . Garrisons Compromised . | . . . . . . . . . . . . . Overloaded Fab Kills . | . . . . . . . . . . . . . Hacking | -11 -10 -10 -10 -9 -8 -8 -8 -8 -6 -6 -6 -6 --------- Run | Scr Mat Min Exi Min Mat Sto Gar Rec Fac Gar Fac Gar Machines Accessed 21 | . 2 . 1 . 6 3 . 4 3 . 2 . Terminals 10 | . 2 . . . 5 2 . . 1 . . . Fabricators 1 | . . . . . . . . . . . 1 . Repair Stations 1 | . . . . . . . . . 1 . . . Recycling Units 4 | . . . . . . . . 4 . . . . Scanalyzers 1 | . . . . . 1 . . . . . . . Garrison Access 3 | . . . . . . 1 . . 1 . 1 . Total Hacks 58 | . 7 . 1 . 29 7 . 6 4 . 4 . Successful 38 | . 3 . 1 . 20 6 . 4 1 . 3 . Failed 20 | . 4 . . . 9 1 . 2 3 . 1 . Catastrophic 1 | . . . . . . . . . 1 . . . Database Lockouts . | . . . . . . . . . . . . . Manual 37 | . 5 . . . 21 5 . 4 2 . . . Terminals 40 | . 7 . . . 26 5 . . 2 . . . Fabricators 3 | . . . . . . . . . . . 3 . Repair Stations 1 | . . . . . . . . . 1 . . . Recycling Units 6 | . . . . . . . . 6 . . . . Scanalyzers 3 | . . . . . 3 . . . . . . . Garrison Access 4 | . . . . . . 2 . . 1 . 1 . Terminal Hacks 17 | . 2 . 1 . 11 3 . . . . . . Record 1 | . . . 1 . . . . . . . . . Robot Analysis 1 | . . . . . 1 . . . . . . . Prototype ID Bank 2 | . 1 . . . 1 . . . . . . . Open Door 1 | . . . . . . 1 . . . . . . Branch Access Points 1 | . . . . . 1 . . . . . . . Terminal Index 1 | . . . . . 1 . . . . . . . Alert Level 1 | . . . . . . 1 . . . . . . Unreport Threat 4 | . . . . . 3 1 . . . . . . Locate Traps 4 | . 1 . . . 3 . . . . . . . Zone Layout 1 | . . . . . 1 . . . . . . . Fabricator Hacks 2 | . . . . . . . . . . . 2 . Network Status 1 | . . . . . . . . . . . 1 . Load Schematic 1 | . . . . . . . . . . . 1 . Repair Station Hacks . | . . . . . . . . . . . . . Recycling Unit Hacks . | . . . . . . . . . . . . . Scanalyzer 3 | . . . . . 3 . . . . . . . Insert Component 1 | . . . . . 1 . . . . . . . Analyze 2 | . . . . . 2 . . . . . . . Garrison Access Hacks 3 | . . . . . . 1 . . 1 . 1 . Unlock Access 3 | . . . . . . 1 . . 1 . 1 . Unauthorized Hacks 13 | . 1 . . . 6 2 . 4 . . . . Terminals 8 | . 1 . . . 6 1 . . . . . . Track 2 | . 1 . . . 1 . . . . . . . Assimilate 1 | . . . . . 1 . . . . . . . Botnet 4 | . . . . . 3 1 . . . . . . Operators 1 | . . . . . 1 . . . . . . . Fabricators . | . . . . . . . . . . . . . Repair Stations . | . . . . . . . . . . . . . Recycling Units 4 | . . . . . . . . 4 . . . . Tunnel 4 | . . . . . . . . 4 . . . . Scanalyzers . | . . . . . . . . . . . . . Garrison Access 1 | . . . . . . 1 . . . . . . Eject 1 | . . . . . . 1 . . . . . . Data Cores Recovered 1 | . . . . . 1 . . . . . . . Used . | . . . . . . . . . . . . . Hacking Detections 15 | . 2 . . . 6 2 . 1 3 . 1 . Full Trace Events 1 | . . . . . 1 . . . . . . . Feedback Events . | . . . . . . . . . . . . . Feedback Blocked . | . . . . . . . . . . . . . Robot Schematics Acquired . | . . . . . . . . . . . . . Robots Built . | . . . . . . . . . . . . . Authchips . | . . . . . . . . . . . . . Time . | . . . . . . . . . . . . . Total Robot Build Rating . | . . . . . . . . . . . . . Part Schematics Acquired 1 | . . . . . 1 . . . . . . . Parts Built . | . . . . . . . . . . . . . Authchips . | . . . . . . . . . . . . . Time . | . . . . . . . . . . . . . Total Part Build Rating . | . . . . . . . . . . . . . Parts Repaired . | . . . . . . . . . . . . . Time . | . . . . . . . . . . . . . Parts Recycled . | . . . . . . . . . . . . . Recycled Matter . | . . . . . . . . . . . . . Retrieved Matter . | . . . . . . . . . . . . . Retrieved Components . | . . . . . . . . . . . . . Parts Scanalyzed 1 | . . . . . 1 . . . . . . . Part Schematics Acquired 1 | . . . . . 1 . . . . . . . Parts Damaged . | . . . . . . . . . . . . . Bothacking | -11 -10 -10 -10 -9 -8 -8 -8 -8 -6 -6 -6 -6 ------------ Run | Scr Mat Min Exi Min Mat Sto Gar Rec Fac Gar Fac Gar Used RIF Installer 2 | . . . . . . . 1 . . 1 . . Hotswap 1 | . . . . . . . . . . 1 . . Robots Hacked 8 | . . . . . . . . . 1 . 1 6 Non-combat 2 | . . . . . . . . . 1 . 1 . Combat 6 | . . . . . . . . . . . . 6 Robot Hacks Applied 12 | . . . . . . . . . 3 . 2 7 parse_system 3 | . . . . . . . . . 1 . . 2 find_station 1 | . . . . . . . . . . . 1 . purge_threat 1 | . . . . . . . . . 1 . . . overwrite_iff 2 | . . . . . . . . . . . . 2 formatsys_low 2 | . . . . . . . . . 1 . 1 . formatsys_high 3 | . . . . . . . . . . . . 3 Relay Couplers Released 31 | . . . . . . 4 8 . . 11 . 8 Ejected 4 | . . . . . . 4 . . . . . . Machine Destruction 27 | . . . . . . . 8 . . 11 . 8 Attached 5 | . . . . . . . . . 1 1 1 2 Fabnet Peak Effective % . | . . . . . . . . . . . . . Robots Rewired . | . . . . . . . . . . . . . Allies Hacked . | . . . . . . . . . . . . . Hacks Repelled . | . . . . . . . . . . . . . Allies | -11 -10 -10 -10 -9 -8 -8 -8 -8 -6 -6 -6 -6 -------- Run | Scr Mat Min Exi Min Mat Sto Gar Rec Fac Gar Fac Gar Total Allies 8 | . . . . . 1 . . . 1 . 1 5 Largest Group 2 | . . . . . 1 1 . . 1 . 1 2 Highest-Rated Group 58 | . . . . . 10 10 . . 26 . 14 58 Highest-Rated Ally 29 | . . . . . 10 10 . . 26 . 14 29 Total Orders 15 | . . . . . . . . . . . 8 7 STAY 8 | . . . . . . . . . . . 4 4 FOLLOW 3 | . . . . . . . . . . . 3 . AID 4 | . . . . . . . . . . . 1 3 Ally Attacks 9 | . . . . . . . . . . . . 9 Total Damage 149 | . . . . . . . . . . . . 149 Kills . | . . . . . . . . . . . . . Allies Corrupted 2 | . . . . . . . . . 1 . . 1 Allies Melted . | . . . . . . . . . . . . . Intel | -11 -10 -10 -10 -9 -8 -8 -8 -8 -6 -6 -6 -6 ------- Run | Scr Mat Min Exi Min Mat Sto Gar Rec Fac Gar Fac Gar Robot Analysis Total 1 | . . . . . 1 . . . . . . . Derelict Logs Recovered 1 | . . 1 . . . . . . . . . . Drone Launches . | . . . . . . . . . . . . . Drone Recoveries . | . . . . . . . . . . . . . Exploration | -11 -10 -10 -10 -9 -8 -8 -8 -8 -6 -6 -6 -6 ------------- Run | Scr Mat Min Exi Min Mat Sto Gar Rec Fac Gar Fac Gar Turns Passed 12714 | 67 630 907 304 143 1636 1459 891 529 1930 1237 925 2056 Spaces Moved 5091 | 39 372 517 152 60 638 523 310 193 661 476 407 743 Core 3 | 3 . . . . . . . . . . . . Treads 4231 | 36 372 517 152 60 638 523 310 193 661 143 . 626 Legs 857 | . . . . . . . . . . 333 407 117 Wheels . | . . . . . . . . . . . . . Hover . | . . . . . . . . . . . . . Flight . | . . . . . . . . . . . . . Fastest Speed 50 | 50 160 160 160 240 162 160 240 240 240 190 190 190 Average Speed 210 | 151 160 160 200 240 206 216 240 245 240 210 190 233 Slowest Speed 540 | 160 160 160 240 240 245 320 240 320 245 540 190 243 Overloaded Moves . | . . . . . . . . . . . . . Propulsion Burnouts . | . . . . . . . . . . . . . Robots Hopped . | . . . . . . . . . . . . . Cave-ins Triggered . | . . . . . . . . . . . . . Exploration Rate (%) 49 | 2 78 94 54 19 61 79 41 48 15 65 11 76 Regions Visited 12 Branch Regions 5 Pre-discovered Areas 5 | . . . 1 . . . . 4 . . . . Known Exits Taken 4 | . . . . . 1 1 . . 1 . 1 . Unknown Exits Taken 6 | 1 1 1 1 1 . . . 1 . . . . Scrap Searched 1 | . . 1 . . . . . . . . . . Spaces Dug 20 | . . . . . 16 . . . . 4 . . Terrain Destroyed 355 | . 90 72 . . 46 38 14 1 . 14 . 80 Melee . | . . . . . . . . . . . . . Projectile 37 | . . . . . 13 17 1 1 . 3 . 2 AOE 318 | . 90 72 . . 33 21 13 . . 11 . 78 Terrain Rammed . | . . . . . . . . . . . . . Walls Destroyed . | . . . . . . . . . . . . . Machines Disabled . | . . . . . . . . . . . . . Actions | -11 -10 -10 -10 -9 -8 -8 -8 -8 -6 -6 -6 -6 --------- Run | Scr Mat Min Exi Min Mat Sto Gar Rec Fac Gar Fac Gar Total 6326 | 44 393 554 153 60 820 683 394 218 873 625 556 953 Wait 429 | . 1 1 . . 42 36 26 4 93 29 135 62 Move 5080 | 38 371 516 151 59 637 523 309 192 660 475 406 743 Hop . | . . . . . . . . . . . . . Pick Up 115 | . 3 7 . 1 29 19 6 . 14 18 3 15 Fast Attach 39 | 6 2 . . . 5 1 2 2 4 6 1 10 Attach 63 | . . 1 . . 10 11 2 . 16 13 1 9 Detach 4 | . . . . . . . . . . . 2 2 Swap 65 | . 1 1 1 . 6 8 7 2 19 6 3 11 Drop 65 | . 1 . 1 . 10 5 9 4 5 4 2 24 Fire 417 | . 12 28 . . 79 76 33 14 56 52 3 64 Melee 3 | . . . . . . . . . 3 . . . Ram . | . . . . . . . . . . . . . Kick . | . . . . . . . . . . . . . Crush 6 | . 2 . . . 2 . . . 2 . . . Escape Stasis 39 | . . . . . . 4 . . . 22 . 13 Rewire 1 | . . . . . . . . . 1 . . . Trap . | . . . . . . . . . . . . . Miscellaneous . | . . . . . . . . . . . . . Route ------- -11/Scrapyard -10/Materials (discovered 4 exits: [*Mat x3] / [*Min]) -10/Mines (discovered 3 exits: [*Mat x2] / *Exi) -10/Exiles (discovered 2 exits: [*Min x2]) -9/Mines -8/Materials (discovered 3 exits: [*Fac x2] / *Sto) -8/Storage -8/Garrison -8/Recycling -6/Factory -6/Garrison (discovered 2 exits: *Fac x2) -6/Factory -6/Garrison (discovered 2 exits: *Fac x2) History --------- Turn | Location | Event 6 | -11/Scrapyard | Discovered new exit (range 15) 68 | -11/Scrapyard | Entered Materials 154 | -10/Materials | Discovered new exit (range 5) 224 | -10/Materials | Discovered new exit (range 11) 311 | -10/Materials | Build established: Mutant 556 | -10/Materials | Discovered new exit (range 6) 689 | -10/Materials | Discovered new exit (range 7) 698 | -10/Materials | Entered Mines 725 | -10/Mines | Deemed a non-threat by the Exiles lab entrance 727 | -10/Mines | Discovered new exit (range 5) 797 | -10/Mines | Discovered new exit (range 9) 927 | -10/Mines | Discovered new exit (range 14) 981 | -10/Mines | Learned Materials terminal intel 1193 | -10/Mines | Received a Rocket Launcher from a helpful Derelict 1605 | -10/Mines | Entered Exiles 1629 | -10/Exiles | Discovered new exit (range 15) 1649 | -10/Exiles | Met 8R-AWN 1671 | -10/Exiles | Met EX-HEX 1767 | -10/Exiles | Met EX-DEC 1811 | -10/Exiles | Learned location of Zion (-6) 1890 | -10/Exiles | Discovered new exit (range 10) 1909 | -10/Exiles | Entered Mines 1943 | -9/Mines | Discovered new exit (range 7) 2010 | -9/Mines | Found a damaged Exp. Sensor Array with a note attached 2015 | -9/Mines | Found Prototype Device 2052 | -9/Mines | Entered Materials 2052 | -8/Materials | Evolved 4 slots: Propulsion x2, Weapon x2 2053 | -8/Materials | Loaded intel: 12 terminal locations 2349 | -8/Materials | Build established: Gunner 2665 | -8/Materials | Identified exit to Storage 2899 | -8/Materials | Discovered new exit (range 16) 3430 | -8/Materials | Destroyed 7 combat bots 3526 | -8/Materials | Discovered new exit (range 11) 3651 | -8/Materials | Identified Exp. Sensor Array 3688 | -8/Materials | Entered Storage 3688 | -8/Storage | Accompanied by 1 ally 4583 | -8/Storage | Garrison activated, responded to threat 5093 | -8/Storage | Build established: Scavenger-Gunner 5147 | -8/Storage | Identified exit to Garrison 5147 | -8/Storage | Entered Garrison 5159 | -8/Garrison | Installed Relay Interface Framework 5340 | -8/Garrison | Triggered checkpoint 5362 | -8/Garrison | Garrison Relay disabled 5550 | -8/Garrison | Triggered checkpoint 5559 | -8/Garrison | Triggered checkpoint 5562 | -8/Garrison | Core integrity fell below 50% 5714 | -8/Garrison | Triggered checkpoint 5745 | -8/Garrison | Garrison Relay disabled 5835 | -8/Garrison | Discovered new exit (range 15) 6038 | -8/Garrison | Entered Recycling 6117 | -8/Recycling | Spotter reported a threat 6124 | -8/Recycling | Spotter reported a threat 6131 | -8/Recycling | Spotter reported a threat 6138 | -8/Recycling | Spotter reported a threat 6141 | -8/Recycling | Spotter reported a threat 6169 | -8/Recycling | Spotter reported a threat 6170 | -8/Recycling | Spotter reported a threat 6194 | -8/Recycling | Spotter reported a threat 6196 | -8/Recycling | Spotter reported a threat 6249 | -8/Recycling | Spotter reported a threat 6288 | -8/Recycling | Spotter reported a threat 6313 | -8/Recycling | Spotter reported a threat 6341 | -8/Recycling | Spotter reported a threat 6432 | -8/Recycling | Spotter reported a threat 6466 | -8/Recycling | Spotter reported a threat 6515 | -8/Recycling | Spotter reported a threat 6530 | -8/Recycling | Discovered new exit (range 15) 6533 | -8/Recycling | Spotter reported a threat 6567 | -8/Recycling | Entered Factory 6567 | -6/Factory | Evolved 4 slots: Utility x4 6917 | -6/Factory | Search patrols dispatched 7267 | -6/Factory | Search patrols dispatched 7617 | -6/Factory | Search patrols dispatched 8090 | -6/Factory | System corruption reached 10% 8120 | -6/Factory | Lost 4 parts (3u1w) 8405 | -6/Factory | Identified exit to Garrison 8410 | -6/Factory | Build established: Scavenger-Skirmisher 8497 | -6/Factory | Entered Garrison 8526 | -6/Garrison | Lost 3 parts (2n1w) 8550 | -6/Garrison | Triggered checkpoint 8600 | -6/Garrison | Garrison Relay disabled 8769 | -6/Garrison | Lost 6 parts (3n3w) 8788 | -6/Garrison | Build established: Scavenger-Gunner 8871 | -6/Garrison | Triggered checkpoint 8977 | -6/Garrison | Destroyed 7 combat bots 8982 | -6/Garrison | Lost 3 parts (1p1n1w) 9182 | -6/Garrison | Discovered new exit (range 9) 9201 | -6/Garrison | Identified exit to Factory 9212 | -6/Garrison | Expanded RIF knowledge: Hotswap 9243 | -6/Garrison | Triggered checkpoint 9280 | -6/Garrison | Garrison Relay disabled 9480 | -6/Garrison | Triggered checkpoint 9544 | -6/Garrison | Discovered exit to Factory (range 10) 9572 | -6/Garrison | Triggered checkpoint 9671 | -6/Garrison | Garrison Relay disabled 9734 | -6/Garrison | Entered Factory 10169 | -6/Factory | Build established: Scavenger-Mutant 10579 | -6/Factory | Identified exit to Garrison 10620 | -6/Factory | Build established: Scavenger-Gunner 10659 | -6/Factory | Entered Garrison 10659 | -6/Garrison | Accompanied by 1 ally 10681 | -6/Garrison | Triggered checkpoint 11031 | -6/Garrison | Garrison Relay disabled 11230 | -6/Garrison | Triggered checkpoint 11386 | -6/Garrison | Triggered checkpoint 11394 | -6/Garrison | Core integrity fell below 50% 11497 | -6/Garrison | Discovered new exit (range 9) 11514 | -6/Garrison | Identified exit to Factory 11621 | -6/Garrison | Phase Generator disabled 11658 | -6/Garrison | Triggered checkpoint 11695 | -6/Garrison | Garrison Relay disabled 12156 | -6/Garrison | Build established: Bothacker-Gunner 12208 | -6/Garrison | Triggered checkpoint 12446 | -6/Garrison | Lost 6 parts (1n2u3w) 12528 | -6/Garrison | Triggered checkpoint 12635 | -6/Garrison | Spotted B-75 Beast 12683 | -6/Garrison | Build established: Bothacker-Skirmisher 12686 | -6/Garrison | Discovered exit to Factory (range 8) 12715 | -6/Garrison | Self-destructed Last Messages --------------- 12483_ Slug penetrates S-27 Virus. 12483_ S-27 Virus suffers critical hit (Destroy). 12483_ Destroyed VTOL Module. 12486_ Slug penetrates S-27 Virus. 12486_ S-27 Virus destroyed. 12493_ Slug penetrates S-27 Virus. 12493_ S-27 Virus destroyed. 12496_ Acquired 25 matter. 12498_ Acquired 27 matter. 12501_ Acquired 30 matter. 12518_ Acquired Autogun. 12533_ System corrupted: Substantial component data lost. 12553_ System corrupted: Component data lost. 12596_ Acquired 23 matter. 12625_ System corrupted: Heat flow error (+216). 12664_ System corrupted: Heat flow error (+261). 12686_ EXIT=FOUND: FACTORY 12704_ System corrupted: FCS attempts to trigger Gauss Rifle. 12704_ System corrupted: Gauss Rifle misfires. 12704_ Slug penetrates Wall. Map ----- +----------------------------------------------------+ | #???????????????????????????????????????? | | #######?????????????????????????????????? | | ==#?????????????????????????????????? | | ##### #?????????????????????????????????? | | ##### ##???????????#????????????????????? | | %#??????????? ????????????????????? | | #??????????? ????????????????????? | | ##### #??????????? ????????????????????? | | ????# #??????????? ????????????????????? | | ????# ########???? #???????????????????? | | ????# %= ??????????????????? | | ????#!%##### ##???# #???????????????????? | | ????# *#???# #????# #???????????????????? | | ????# #???# #????# #???????????????????? | | ????# !#???# #????# #???????????????????? | | ##### ##### ###### #???????????????????? | | % = %* %[ #???????????????????? | | * %= [ #???????????????????? | | ##### *##### ## ## #???????????????????? | | ????# #???# ##### #???????????????????? | | ????# #???# ##### ###### #????????????? | | ????# #???# #???????? | | ????# #???####### ########????????????? | | ????# #?????????# ########????????????? | | ????# #?????????# # """#????????????? | | ????# #?????????# < @"#????????????? | | ????# #?????????# #""""#????????????? | | ????# #?????????###########????????????? | | ???# ???????????????????????????????? | | ?# #?????????????????????????????? | | ##### ####?????????????????????????????? | | ????! !????????????????????????????????? | | ????! !????????????????????????????????? | | ???#####????????????????????????????????? | | ????????????????????????????????????????? | | ????????????????????????????????????????? | | ????????????????????????????????????????? | | ????????????????????????????????????????? | | ????????????????????????????????????????? | | ????????????????????????????????????????? | | ????????????????????????????????????????? | | ????????????????????????????????????????? | | ????????????????????????????????????????? | | ????????????????????????????????????????? | | ????????????????????????????????????????? | | ????????????????????????????????????????? | | ????????????????????????????????????????? | | ????????????????????????????????????????? | | ????????????????????????????????????????? | | ????????????????????????????????????????? | +----------------------------------------------------+ Best States ------------- Heat Dissipation 56 Energy Generation 18 Energy Capacity 290 Matter Stores 300 Matter Capacity 300 Sight Range 16 Robot Scan Range 20 Terrain Scan Density 10 Resistance: TH 20 Weapon Cycling 15 Phase Shifting 5 Evasion (%) 45 Targeting Accuracy 8 Target Analysis 5 Recoil Reduction 8 Kinecelleration 30 Relay Coupler Types 3 Relay Coupler Value 39 Item Schematics ----------------- Exp. Sensor Array | -8/Materials | Scanalyzed Robot Schematics ------------------ None Fabricated ------------ Nothing Alien Tech Used ----------------- None Achievements -------------- None Challenges ------------ None Game ------ Seed UltimateTitaniumAutogun Manual? 0 Play Time 00:49:51 Cumulative 260.3 hours Start 2022.08.04 @ 06:39:57 End 2022.08.11 @ 07:12:47 Sessions 5 Manual Loads 0 Difficulty Rogue Special Mode None Game No. 367 Rogue 345 Adventurer 4 Explorer 18 Win Type - Total 10 Types 8/0/0/2/0/0/0/0/0 Lore% 70 Gallery% 89 Achievement% 72 Wizard Run 0 Options --------- ASCII 0 Keyboard 1 Movement Numpad Keybinds 0 Fullscreen 1 Font 18/SmallcapsGlow Map View 76x50 Tactical HUD 1 Map Filters NONE Filters NONE Steam 1 RUN: 1dbf5e70-41ba-4895-b466-5a2b7512a63e